[Event "Early-Titled-Tuesday-Blitz-September-12-2023"]
[Site "Chess.com"]
[Date "2023.09.12"]
[Round "9"]
[White "FabianoCaruana"]
[Black "Duhless"]
[Result "1/2-1/2"]
[WhiteElo "3068"]
[BlackElo "2986"]
[TimeControl "180+1"]
[EndTime "9:47:19 PDT"]
[Termination "Game drawn - insufficient material"]

1. e4 {[%clk 0:03:00.9]} 1... e5 {[%clk 0:02:58.6]} 2. Nf3 {[%clk 0:03:01]} 2...
Nc6 {[%clk 0:02:59.4]} 3. Bb5 {[%clk 0:03:01.4]} 3... a6 {[%clk 0:02:59.6]} 4.
Ba4 {[%clk 0:03:01.7]} 4... Nf6 {[%clk 0:03:00.4]} 5. d3 {[%clk 0:03:02.3]} 5...
b5 {[%clk 0:02:58.4]} 6. Bb3 {[%clk 0:03:02.7]} 6... Bc5 {[%clk 0:02:59.3]} 7.
c3 {[%clk 0:03:02.8]} 7... d6 {[%clk 0:02:59.1]} 8. Bg5 {[%clk 0:03:02.9]} 8...
h6 {[%clk 0:02:58.6]} 9. Bh4 {[%clk 0:03:03.5]} 9... Rb8 {[%clk 0:02:59.2]} 10.
Nbd2 {[%clk 0:03:02.5]} 10... Kf8 {[%clk 0:02:58.5]} 11. Kf1 {[%clk 0:02:59.3]}
11... g5 {[%clk 0:02:57.5]} 12. Bg3 {[%clk 0:02:59.4]} 12... Bb6 {[%clk
0:02:55.5]} 13. Kg1 {[%clk 0:02:56.9]} 13... Kg7 {[%clk 0:02:48.7]} 14. h4
{[%clk 0:02:56]} 14... g4 {[%clk 0:02:40.1]} 15. Nh2 {[%clk 0:02:54.4]} 15...
Nh5 {[%clk 0:02:38.1]} 16. Ndf1 {[%clk 0:02:53.8]} 16... Nxg3 {[%clk 0:02:28.9]}
17. Nxg3 {[%clk 0:02:54.7]} 17... Qxh4 {[%clk 0:02:29]} 18. Nhf1 {[%clk
0:02:48.7]} 18... Qe7 {[%clk 0:02:23.9]} 19. Bd5 {[%clk 0:02:45.9]} 19... Nd8
{[%clk 0:02:23]} 20. d4 {[%clk 0:02:45.9]} 20... c6 {[%clk 0:02:03.8]} 21. Ne3
{[%clk 0:02:45.5]} 21... Kf8 {[%clk 0:02:03.8]} 22. Nef5 {[%clk 0:02:43.8]}
22... Bxf5 {[%clk 0:01:53.3]} 23. Nxf5 {[%clk 0:02:43.4]} 23... Qf6 {[%clk
0:01:49.4]} 24. Bb3 {[%clk 0:02:42.1]} 24... h5 {[%clk 0:01:46.5]} 25. g3 {[%clk
0:02:23.6]} 25... exd4 {[%clk 0:01:24.9]} 26. Nxd4 {[%clk 0:02:02]} 26... Ne6
{[%clk 0:01:22.1]} 27. Nxe6+ {[%clk 0:01:56.5]} 27... fxe6 {[%clk 0:01:19.7]}
28. Qxd6+ {[%clk 0:01:56.5]} 28... Kg7 {[%clk 0:01:13.6]} 29. Qd7+ {[%clk
0:01:12.1]} 29... Kg6 {[%clk 0:00:53.9]} 30. Qxe6 {[%clk 0:01:07.4]} 30... Rhf8
{[%clk 0:00:37.7]} 31. Qf5+ {[%clk 0:00:55.3]} 31... Qxf5 {[%clk 0:00:31.6]} 32.
exf5+ {[%clk 0:00:56.2]} 32... Kxf5 {[%clk 0:00:21.3]} 33. Rxh5+ {[%clk
0:00:46.7]} 33... Kg6 {[%clk 0:00:20.9]} 34. Rh2 {[%clk 0:00:41.1]} 34... Rf3
{[%clk 0:00:19.3]} 35. Rd1 {[%clk 0:00:30.1]} 35... Rxg3+ {[%clk 0:00:15.9]} 36.
Kf1 {[%clk 0:00:22.3]} 36... Rf3 {[%clk 0:00:12.8]} 37. Rd6+ {[%clk 0:00:21.9]}
37... Kg5 {[%clk 0:00:06.9]} 38. Bc2 {[%clk 0:00:21.6]} 38... Rf6 {[%clk
0:00:06.4]} 39. Rxf6 {[%clk 0:00:20.4]} 39... Kxf6 {[%clk 0:00:07.3]} 40. Rh6+
{[%clk 0:00:20.6]} 40... Kg5 {[%clk 0:00:05.1]} 41. Rxc6 {[%clk 0:00:21.5]}
41... a5 {[%clk 0:00:04.6]} 42. Kg2 {[%clk 0:00:21]} 42... Ba7 {[%clk
0:00:03.9]} 43. Rc7 {[%clk 0:00:10]} 43... Bb6 {[%clk 0:00:04.3]} 44. Rg7+
{[%clk 0:00:09.8]} 44... Kh4 {[%clk 0:00:03.2]} 45. Bf5 {[%clk 0:00:08.5]} 45...
Rf8 {[%clk 0:00:03.5]} 46. Rxg4+ {[%clk 0:00:07.6]} 46... Kh5 {[%clk 0:00:04]}
47. Bd7 {[%clk 0:00:05]} 47... Rxf2+ {[%clk 0:00:03.6]} 48. Kh3 {[%clk
0:00:05.6]} 48... Rxb2 {[%clk 0:00:04.3]} 49. Rh4+ {[%clk 0:00:05]} 49... Kg5
{[%clk 0:00:04.4]} 50. Re4 {[%clk 0:00:05.5]} 50... Bc7 {[%clk 0:00:04.1]} 51.
Rg4+ {[%clk 0:00:04.6]} 51... Kh5 {[%clk 0:00:04.5]} 52. Rh4+ {[%clk 0:00:05]}
52... Kg5 {[%clk 0:00:04.9]} 53. Rg4+ {[%clk 0:00:05.6]} 53... Kf6 {[%clk
0:00:05.7]} 54. Re4 {[%clk 0:00:05.4]} 54... Rxa2 {[%clk 0:00:04.5]} 55. Bxb5
{[%clk 0:00:05]} 55... Kg5 {[%clk 0:00:04.2]} 56. Rg4+ {[%clk 0:00:05.1]} 56...
Kf6 {[%clk 0:00:04.7]} 57. Rc4 {[%clk 0:00:04.5]} 57... Bd6 {[%clk 0:00:04.6]}
58. Kg4 {[%clk 0:00:04.9]} 58... Ke5 {[%clk 0:00:04.1]} 59. Kf3 {[%clk
0:00:05.4]} 59... Rh2 {[%clk 0:00:03.7]} 60. Ke3 {[%clk 0:00:05.1]} 60... Rh3+
{[%clk 0:00:03.7]} 61. Kd2 {[%clk 0:00:05.3]} 61... Rh2+ {[%clk 0:00:03.9]} 62.
Kd3 {[%clk 0:00:05.6]} 62... Rh3+ {[%clk 0:00:04.1]} 63. Kc2 {[%clk 0:00:05.8]}
63... Rh2+ {[%clk 0:00:04.4]} 64. Kb3 {[%clk 0:00:06.2]} 64... Rh8 {[%clk
0:00:05.1]} 65. Ka4 {[%clk 0:00:06]} 65... Ra8 {[%clk 0:00:05.2]} 66. Bc6 {[%clk
0:00:05.9]} 66... Ra7 {[%clk 0:00:05.6]} 67. Re4+ {[%clk 0:00:05.9]} 67... Kf6
{[%clk 0:00:06]} 68. c4 {[%clk 0:00:06.3]} 68... Bg3 {[%clk 0:00:03.6]} 69. Bd5
{[%clk 0:00:06.2]} 69... Kf5 {[%clk 0:00:02.7]} 70. Re3 {[%clk 0:00:06.2]} 70...
Bf4 {[%clk 0:00:02.7]} 71. Re8 {[%clk 0:00:06.8]} 71... Kf6 {[%clk 0:00:03.1]}
72. c5 {[%clk 0:00:06.7]} 72... Rc7 {[%clk 0:00:03]} 73. c6 {[%clk 0:00:07.2]}
73... Bg3 {[%clk 0:00:03.2]} 74. Kxa5 {[%clk 0:00:07.4]} 74... Ra7+ {[%clk
0:00:03.1]} 75. Kb6 {[%clk 0:00:07.5]} 75... Bf2+ {[%clk 0:00:03.7]} 76. Kb5
{[%clk 0:00:08]} 76... Bg3 {[%clk 0:00:04.4]} 77. Re6+ {[%clk 0:00:07.7]} 77...
Kf5 {[%clk 0:00:04.5]} 78. Re8 {[%clk 0:00:08.2]} 78... Bh2 {[%clk 0:00:03.9]}
79. Rf8+ {[%clk 0:00:07.6]} 79... Ke5 {[%clk 0:00:03.9]} 80. Bg2 {[%clk
0:00:08.1]} 80... Kd4 {[%clk 0:00:03.9]} 81. Kb6 {[%clk 0:00:07.7]} 81... Ra1
{[%clk 0:00:03.5]} 82. Rd8+ {[%clk 0:00:05.8]} 82... Kc4 {[%clk 0:00:03.6]} 83.
Kb7 {[%clk 0:00:05.8]} 83... Rb1+ {[%clk 0:00:03.5]} 84. Ka6 {[%clk 0:00:05.9]}
84... Ra1+ {[%clk 0:00:03.6]} 85. Kb7 {[%clk 0:00:06.4]} 85... Rb1+ {[%clk
0:00:04]} 86. Kc8 {[%clk 0:00:07]} 86... Rb8+ {[%clk 0:00:04.2]} 87. Kd7 {[%clk
0:00:07.9]} 87... Rxd8+ {[%clk 0:00:04.7]} 88. Kxd8 {[%clk 0:00:08.8]} 88... Kc5
{[%clk 0:00:05.5]} 89. c7 {[%clk 0:00:09.7]} 89... Bxc7+ {[%clk 0:00:05.8]}
1/2-1/2

[Event "Early-Titled-Tuesday-Blitz-September-12-2023"]
[Site "Chess.com"]
[Date "2023.09.12"]
[Round "9"]
[White "RobertoJBM"]
[Black "TatjanaVasilevich"]
[Result "1-0"]
[WhiteElo "2805"]
[BlackElo "2551"]
[TimeControl "180+1"]
[EndTime "9:47:27 PDT"]
[Termination "RobertoJBM won by checkmate"]

1. d4 {[%clk 0:03:00.9]} 1... Nf6 {[%clk 0:02:59.6]} 2. c4 {[%clk 0:03:01.4]}
2... e6 {[%clk 0:02:59.9]} 3. Nf3 {[%clk 0:03:01.9]} 3... Bb4+ {[%clk 0:03:00]}
4. Bd2 {[%clk 0:03:01.2]} 4... Bxd2+ {[%clk 0:03:00.2]} 5. Qxd2 {[%clk
0:03:01.8]} 5... d6 {[%clk 0:03:00.6]} 6. Nc3 {[%clk 0:03:02.2]} 6... O-O {[%clk
0:03:01]} 7. e4 {[%clk 0:03:02.8]} 7... Qe7 {[%clk 0:02:59.9]} 8. Be2 {[%clk
0:03:02.6]} 8... e5 {[%clk 0:03:00.1]} 9. d5 {[%clk 0:02:59]} 9... a5 {[%clk
0:02:57.1]} 10. O-O {[%clk 0:02:58.7]} 10... Na6 {[%clk 0:02:57.2]} 11. Ne1
{[%clk 0:02:59.1]} 11... Nc5 {[%clk 0:02:56.7]} 12. f3 {[%clk 0:02:59.7]} 12...
a4 {[%clk 0:02:57.4]} 13. Nd3 {[%clk 0:02:59.9]} 13... Nfd7 {[%clk 0:02:56.9]}
14. Rab1 {[%clk 0:02:57.5]} 14... f5 {[%clk 0:02:55.1]} 15. Nxc5 {[%clk
0:02:57.2]} 15... Nxc5 {[%clk 0:02:55.2]} 16. Bd3 {[%clk 0:02:54.5]} 16... f4
{[%clk 0:02:54.9]} 17. b4 {[%clk 0:02:53.7]} 17... axb3 {[%clk 0:02:55]} 18.
axb3 {[%clk 0:02:54.6]} 18... g5 {[%clk 0:02:46.9]} 19. b4 {[%clk 0:02:54.7]}
19... Na6 {[%clk 0:02:47.1]} 20. c5 {[%clk 0:02:52.1]} 20... dxc5 {[%clk
0:02:45.2]} 21. Bxa6 {[%clk 0:02:51.8]} 21... Rxa6 {[%clk 0:02:44.8]} 22. Nb5
{[%clk 0:02:48]} 22... Rb6 {[%clk 0:02:40.2]} 23. d6 {[%clk 0:02:20.8]} 23...
cxd6 {[%clk 0:02:35.6]} 24. bxc5 {[%clk 0:02:16]} 24... dxc5 {[%clk 0:02:35.1]}
25. Rfd1 {[%clk 0:02:13.9]} 25... Be6 {[%clk 0:02:33.5]} 26. Qc3 {[%clk
0:02:07.8]} 26... Bd7 {[%clk 0:02:18.7]} 27. Nc7 {[%clk 0:01:59.4]} 27... Rxb1
{[%clk 0:02:13.2]} 28. Rxb1 {[%clk 0:02:00.3]} 28... Bc6 {[%clk 0:02:13.6]} 29.
Qc4+ {[%clk 0:01:49]} 29... Qf7 {[%clk 0:02:05.8]} 30. Nd5 {[%clk 0:01:41.4]}
30... Rd8 {[%clk 0:01:04.4]} 31. Qxc5 {[%clk 0:01:16.6]} 31... Bxd5 {[%clk
0:01:02]} 32. exd5 {[%clk 0:01:17.5]} 32... Qxd5 {[%clk 0:00:56.2]} 33. Qxd5+
{[%clk 0:01:16.4]} 33... Rxd5 {[%clk 0:00:56.5]} 34. Rxb7 {[%clk 0:01:17.3]}
34... h5 {[%clk 0:00:56.7]} 35. h3 {[%clk 0:01:16.4]} 35... Rd6 {[%clk
0:00:50.2]} 36. Kf2 {[%clk 0:01:15.5]} 36... Re6 {[%clk 0:00:50.3]} 37. Ke2
{[%clk 0:01:13.7]} 37... e4 {[%clk 0:00:45.7]} 38. fxe4 {[%clk 0:01:13.9]} 38...
Rxe4+ {[%clk 0:00:45.8]} 39. Kf3 {[%clk 0:01:14.2]} 39... Re3+ {[%clk
0:00:45.7]} 40. Kf2 {[%clk 0:01:14.6]} 40... Re5 {[%clk 0:00:46.4]} 41. Kf3
{[%clk 0:01:14.3]} 41... Kh8 {[%clk 0:00:42.6]} 42. Ra7 {[%clk 0:01:14]} 42...
Kg8 {[%clk 0:00:42.4]} 43. Rb7 {[%clk 0:01:13.9]} 43... Kf8 {[%clk 0:00:33.9]}
44. Rh7 {[%clk 0:00:54]} 44... Re3+ {[%clk 0:00:32.7]} 45. Kf2 {[%clk
0:00:53.7]} 45... g4 {[%clk 0:00:31.5]} 46. Rxh5 {[%clk 0:00:44.4]} 46... g3+
{[%clk 0:00:31.5]} 47. Kf1 {[%clk 0:00:44.8]} 47... Re4 {[%clk 0:00:31.9]} 48.
Rh7 {[%clk 0:00:41.3]} 48... Kg8 {[%clk 0:00:30.3]} 49. Ra7 {[%clk 0:00:40.5]}
49... Rb4 {[%clk 0:00:29.6]} 50. Ke2 {[%clk 0:00:37.9]} 50... Rb2+ {[%clk
0:00:28.6]} 51. Kf3 {[%clk 0:00:37.5]} 51... Rf2+ {[%clk 0:00:27.9]} 52. Kg4
{[%clk 0:00:37.8]} 52... Rxg2 {[%clk 0:00:28.4]} 53. Kxf4 {[%clk 0:00:38]} 53...
Rg1 {[%clk 0:00:29]} 54. Kf3 {[%clk 0:00:37.7]} 54... g2 {[%clk 0:00:27.8]} 55.
Kf2 {[%clk 0:00:36.8]} 55... Rc1 {[%clk 0:00:27.5]} 56. Kxg2 {[%clk 0:00:36.7]}
56... Rc3 {[%clk 0:00:20.7]} 57. Rb7 {[%clk 0:00:35.8]} 57... Rd3 {[%clk
0:00:20.9]} 58. Rc7 {[%clk 0:00:35.5]} 58... Rb3 {[%clk 0:00:21.1]} 59. Kh2
{[%clk 0:00:35.1]} 59... Ra3 {[%clk 0:00:21.3]} 60. Rb7 {[%clk 0:00:34.6]} 60...
Rd3 {[%clk 0:00:21.5]} 61. Kg2 {[%clk 0:00:34.6]} 61... Ra3 {[%clk 0:00:21.8]}
62. Rc7 {[%clk 0:00:34.6]} 62... Kf8 {[%clk 0:00:22.1]} 63. Rh7 {[%clk 0:00:34]}
63... Kg8 {[%clk 0:00:22.6]} 64. Re7 {[%clk 0:00:33.6]} 64... Kf8 {[%clk
0:00:23.2]} 65. Re4 {[%clk 0:00:33.6]} 65... Kf7 {[%clk 0:00:23.6]} 66. Rg4
{[%clk 0:00:33.6]} 66... Kf6 {[%clk 0:00:24]} 67. h4 {[%clk 0:00:33.9]} 67...
Kf5 {[%clk 0:00:24.5]} 68. Rg5+ {[%clk 0:00:34.1]} 68... Kf4 {[%clk 0:00:25]}
69. Rg8 {[%clk 0:00:34.5]} 69... Ra2+ {[%clk 0:00:25.2]} 70. Kh3 {[%clk
0:00:34.8]} 70... Kf3 {[%clk 0:00:25.7]} 71. Rf8+ {[%clk 0:00:34.2]} 71... Ke4
{[%clk 0:00:26.2]} 72. h5 {[%clk 0:00:33.7]} 72... Ra1 {[%clk 0:00:26.7]} 73.
Kg4 {[%clk 0:00:31.2]} 73... Rh1 {[%clk 0:00:27]} 74. Re8+ {[%clk 0:00:30.4]}
74... Kd5 {[%clk 0:00:27.2]} 75. Kg5 {[%clk 0:00:30.3]} 75... Rg1+ {[%clk
0:00:27.7]} 76. Kf6 {[%clk 0:00:29.8]} 76... Rf1+ {[%clk 0:00:26.8]} 77. Kg6
{[%clk 0:00:29.8]} 77... Rg1+ {[%clk 0:00:27.3]} 78. Kh7 {[%clk 0:00:29.9]}
78... Kd6 {[%clk 0:00:27.5]} 79. h6 {[%clk 0:00:29.5]} 79... Kd7 {[%clk
0:00:28]} 80. Rg8 {[%clk 0:00:22]} 80... Rh1 {[%clk 0:00:28.3]} 81. Rg6 {[%clk
0:00:21.4]} 81... Ke8 {[%clk 0:00:22.7]} 82. Kg7 {[%clk 0:00:20.9]} 82... Rf1
{[%clk 0:00:22.4]} 83. h7 {[%clk 0:00:17.3]} 83... Rf7+ {[%clk 0:00:22.3]} 84.
Kh6 {[%clk 0:00:17.2]} 84... Rf8 {[%clk 0:00:22.8]} 85. Rg8 {[%clk 0:00:16.7]}
85... Rxg8 {[%clk 0:00:23]} 86. hxg8=Q+ {[%clk 0:00:16.4]} 86... Ke7 {[%clk
0:00:19.4]} 87. Qd5 {[%clk 0:00:11.7]} 87... Kf6 {[%clk 0:00:19.6]} 88. Qe4
{[%clk 0:00:11.2]} 88... Kf7 {[%clk 0:00:19.8]} 89. Qe5 {[%clk 0:00:09.9]} 89...
Kf8 {[%clk 0:00:19.8]} 90. Qc7 {[%clk 0:00:09.5]} 90... Ke8 {[%clk 0:00:20.1]}
91. Kg6 {[%clk 0:00:09.3]} 91... Kf8 {[%clk 0:00:20.7]} 92. Qf7# {[%clk
0:00:09.8]} 1-0

[Event "Early-Titled-Tuesday-Blitz-September-12-2023"]
[Site "Chess.com"]
[Date "2023.09.12"]
[Round "9"]
[White "Jackalhead_Anubis"]
[Black "the-gambler"]
[Result "1-0"]
[WhiteElo "2408"]
[BlackElo "2478"]
[TimeControl "180+1"]
[EndTime "9:47:31 PDT"]
[Termination "Jackalhead_Anubis won by checkmate"]

1. e4 {[%clk 0:03:00.9]} 1... c6 {[%clk 0:02:55.8]} 2. d4 {[%clk 0:03:00.1]}
2... g6 {[%clk 0:02:56]} 3. Nc3 {[%clk 0:02:56.7]} 3... Bg7 {[%clk 0:02:56.4]}
4. f4 {[%clk 0:02:52.9]} 4... d6 {[%clk 0:02:53.6]} 5. Nf3 {[%clk 0:02:51.9]}
5... Nf6 {[%clk 0:02:53.7]} 6. Be2 {[%clk 0:02:49.2]} 6... O-O {[%clk
0:02:50.5]} 7. O-O {[%clk 0:02:48.9]} 7... Bg4 {[%clk 0:02:49.5]} 8. h3 {[%clk
0:02:48.4]} 8... Bxf3 {[%clk 0:02:48.9]} 9. Bxf3 {[%clk 0:02:49.3]} 9... e5
{[%clk 0:02:49]} 10. dxe5 {[%clk 0:02:47.9]} 10... dxe5 {[%clk 0:02:48.9]} 11.
Qxd8 {[%clk 0:02:46.2]} 11... Rxd8 {[%clk 0:02:47.7]} 12. fxe5 {[%clk
0:02:46.8]} 12... Nfd7 {[%clk 0:02:47.3]} 13. e6 {[%clk 0:02:44.4]} 13... fxe6
{[%clk 0:02:47]} 14. Bg4 {[%clk 0:02:43.6]} 14... Nf8 {[%clk 0:02:44.5]} 15. Bg5
{[%clk 0:02:42]} 15... Re8 {[%clk 0:02:44.1]} 16. Rad1 {[%clk 0:02:40.2]} 16...
Nbd7 {[%clk 0:02:42.3]} 17. h4 {[%clk 0:02:34.3]} 17... h6 {[%clk 0:02:39.2]}
18. Bf4 {[%clk 0:02:30.9]} 18... Ne5 {[%clk 0:02:38]} 19. Bh3 {[%clk 0:02:29.1]}
19... Nc4 {[%clk 0:02:31.6]} 20. b3 {[%clk 0:02:24.5]} 20... Nb2 {[%clk
0:02:27.7]} 21. Na4 {[%clk 0:02:02.3]} 21... Nxd1 {[%clk 0:02:25.1]} 22. Rxd1
{[%clk 0:02:03.2]} 22... Rad8 {[%clk 0:02:18.3]} 23. Rf1 {[%clk 0:02:03]} 23...
Kh7 {[%clk 0:02:11]} 24. Kh1 {[%clk 0:02:00]} 24... Nd7 {[%clk 0:02:08.1]} 25.
Bc7 {[%clk 0:01:53.4]} 25... Rc8 {[%clk 0:02:05.6]} 26. Bd6 {[%clk 0:01:49.9]}
26... Kg8 {[%clk 0:02:00.1]} 27. Rd1 {[%clk 0:01:47.3]} 27... b6 {[%clk
0:01:47.9]} 28. Bh2 {[%clk 0:01:40.4]} 28... Nf8 {[%clk 0:01:42.9]} 29. Rd6
{[%clk 0:01:23.5]} 29... Kf7 {[%clk 0:01:36.4]} 30. c4 {[%clk 0:01:18.3]} 30...
Red8 {[%clk 0:01:33.1]} 31. c5 {[%clk 0:01:18.1]} 31... bxc5 {[%clk 0:01:32.3]}
32. Nxc5 {[%clk 0:01:14.5]} 32... Rxd6 {[%clk 0:01:27.4]} 33. Bxd6 {[%clk
0:01:15.4]} 33... Rd8 {[%clk 0:01:24.2]} 34. Bc7 {[%clk 0:01:06.1]} 34... Rd1+
{[%clk 0:01:20.8]} 35. Kh2 {[%clk 0:01:05]} 35... Bd4 {[%clk 0:01:19.1]} 36. Nb7
{[%clk 0:01:02.3]} 36... Bf6 {[%clk 0:01:04.2]} 37. g3 {[%clk 0:00:48.7]} 37...
Rd7 {[%clk 0:01:01.8]} 38. Nd6+ {[%clk 0:00:43.7]} 38... Ke7 {[%clk 0:01:01]}
39. Nc8+ {[%clk 0:00:43.1]} 39... Kf7 {[%clk 0:01:01.1]} 40. Bf4 {[%clk
0:00:38.4]} 40... g5 {[%clk 0:00:58]} 41. Be3 {[%clk 0:00:25.9]} 41... Bd4
{[%clk 0:00:56.9]} 42. Bxd4 {[%clk 0:00:20.3]} 42... Rxd4 {[%clk 0:00:56.2]} 43.
Nxa7 {[%clk 0:00:19.7]} 43... Rxe4 {[%clk 0:00:56.3]} 44. Bg2 {[%clk 0:00:20]}
44... Re2 {[%clk 0:00:55.6]} 45. a4 {[%clk 0:00:19.6]} 45... c5 {[%clk
0:00:44.1]} 46. a5 {[%clk 0:00:19.1]} 46... Ra2 {[%clk 0:00:43.2]} 47. Nc6
{[%clk 0:00:19.1]} 47... Nd7 {[%clk 0:00:42.1]} 48. Kg1 {[%clk 0:00:18.7]} 48...
gxh4 {[%clk 0:00:36.9]} 49. gxh4 {[%clk 0:00:18.5]} 49... Ra3 {[%clk 0:00:36.6]}
50. Bf1 {[%clk 0:00:17.1]} 50... Rxb3 {[%clk 0:00:35.5]} 51. a6 {[%clk
0:00:16.9]} 51... Rg3+ {[%clk 0:00:36]} 52. Kf2 {[%clk 0:00:16.8]} 52... Ra3
{[%clk 0:00:36.9]} 53. a7 {[%clk 0:00:16.7]} 53... Nb6 {[%clk 0:00:35.8]} 54.
Bg2 {[%clk 0:00:16.7]} 54... c4 {[%clk 0:00:34.8]} 55. Bf3 {[%clk 0:00:16.6]}
55... Kf6 {[%clk 0:00:33.6]} 56. Ke2 {[%clk 0:00:16.8]} 56... Kf5 {[%clk
0:00:32.7]} 57. Bg2 {[%clk 0:00:16.8]} 57... Kg4 {[%clk 0:00:32.1]} 58. Kd2
{[%clk 0:00:14.1]} 58... Kxh4 {[%clk 0:00:31.7]} 59. Kc1 {[%clk 0:00:13.6]}
59... Kg3 {[%clk 0:00:31.6]} 60. Be4 {[%clk 0:00:13.6]} 60... h5 {[%clk
0:00:31]} 61. Kb2 {[%clk 0:00:13.7]} 61... Ra4 {[%clk 0:00:30.6]} 62. Kc3 {[%clk
0:00:13.8]} 62... h4 {[%clk 0:00:30.1]} 63. Kd4 {[%clk 0:00:14]} 63... h3 {[%clk
0:00:30]} 64. Kc5 {[%clk 0:00:14.3]} 64... Na8 {[%clk 0:00:28.6]} 65. Kb5 {[%clk
0:00:13.9]} 65... c3 {[%clk 0:00:25.1]} 66. Kxa4 {[%clk 0:00:13.6]} 66... h2
{[%clk 0:00:24.6]} 67. Kb3 {[%clk 0:00:13.2]} 67... Nc7 {[%clk 0:00:22.8]} 68.
Nd4 {[%clk 0:00:12.3]} 68... Kf4 {[%clk 0:00:20.2]} 69. Bb7 {[%clk 0:00:11.9]}
69... e5 {[%clk 0:00:19]} 70. Ne6+ {[%clk 0:00:12]} 70... Kf5 {[%clk 0:00:18.3]}
71. Nxc7 {[%clk 0:00:12.2]} 71... e4 {[%clk 0:00:18.7]} 72. Bxe4+ {[%clk
0:00:10.9]} 72... Kxe4 {[%clk 0:00:17.9]} 73. a8=Q+ {[%clk 0:00:11.6]} 73... Kd3
{[%clk 0:00:18.8]} 74. Qd5+ {[%clk 0:00:11.3]} 74... Ke3 {[%clk 0:00:18.4]} 75.
Kxc3 {[%clk 0:00:12.2]} 75... Kf2 {[%clk 0:00:18.3]} 76. Qh1 {[%clk 0:00:13.1]}
76... Kg3 {[%clk 0:00:18.3]} 77. Nd5 {[%clk 0:00:14]} 77... Kh3 {[%clk
0:00:19.1]} 78. Kd4 {[%clk 0:00:14.6]} 78... Kg3 {[%clk 0:00:20]} 79. Ke4 {[%clk
0:00:15.1]} 79... Kf2 {[%clk 0:00:20.9]} 80. Kf4 {[%clk 0:00:15]} 80... Ke2
{[%clk 0:00:18.8]} 81. Qxh2+ {[%clk 0:00:14.7]} 81... Kd3 {[%clk 0:00:19.1]} 82.
Ke5 {[%clk 0:00:15.2]} 82... Kc4 {[%clk 0:00:19]} 83. Qd2 {[%clk 0:00:15.1]}
83... Kb3 {[%clk 0:00:18.9]} 84. Nf6 {[%clk 0:00:15.3]} 84... Ka3 {[%clk
0:00:18.6]} 85. Nh7 {[%clk 0:00:16.2]} 85... Kb3 {[%clk 0:00:17.9]} 86. Qc1
{[%clk 0:00:16.5]} 86... Ka2 {[%clk 0:00:17.9]} 87. Kd4 {[%clk 0:00:16.2]} 87...
Kb3 {[%clk 0:00:17.8]} 88. Qc3+ {[%clk 0:00:16.5]} 88... Ka2 {[%clk 0:00:18]}
89. Qb4 {[%clk 0:00:16.7]} 89... Ka1 {[%clk 0:00:18]} 90. Kc3 {[%clk 0:00:17.5]}
90... Ka2 {[%clk 0:00:18.4]} 91. Qb2# {[%clk 0:00:18.4]} 1-0

[Event "Early-Titled-Tuesday-Blitz-September-12-2023"]
[Site "Chess.com"]
[Date "2023.09.12"]
[Round "10"]
[White "JiiHart"]
[Black "HeinichessPY"]
[Result "1-0"]
[WhiteElo "2162"]
[BlackElo "2326"]
[TimeControl "180+1"]
[EndTime "9:50:26 PDT"]
[Termination "JiiHart won by resignation"]

1. e4 {[%clk 0:03:00.9]} 1... c5 {[%clk 0:03:00.4]} 2. c3 {[%clk 0:03:00.5]}
2... Nc6 {[%clk 0:03:01.1]} 3. d4 {[%clk 0:03:00.3]} 3... cxd4 {[%clk 0:03:02]}
4. cxd4 {[%clk 0:03:00.7]} 4... d5 {[%clk 0:03:02.1]} 5. exd5 {[%clk 0:03:00.9]}
5... Nb4 {[%clk 0:03:00.9]} 6. Qa4+ {[%clk 0:02:55.2]} 6... Bd7 {[%clk
0:02:59.2]} 7. Qxb4 {[%clk 0:02:55.2]} 7... e5 {[%clk 0:02:59.9]} 8. d6 {[%clk
0:02:36.3]} 8... exd4 {[%clk 0:02:59.4]} 9. Qxd4 {[%clk 0:02:24.9]} 9... Nf6
{[%clk 0:02:59.7]} 10. Nc3 {[%clk 0:02:13.8]} 10... g6 {[%clk 0:02:48.6]} 11.
Qe5+ {[%clk 0:02:08.3]} 11... Be6 {[%clk 0:02:47.5]} 12. Bb5+ {[%clk 0:02:07.2]}
12... Qd7 {[%clk 0:02:42]} 13. Bxd7+ {[%clk 0:02:06.2]} 1-0

[Event "Early-Titled-Tuesday-Blitz-September-12-2023"]
[Site "Chess.com"]
[Date "2023.09.12"]
[Round "10"]
[White "BlitzWizard04"]
[Black "Juicy_Fork"]
[Result "1-0"]
[WhiteElo "2622"]
[BlackElo "2475"]
[TimeControl "180+1"]
[EndTime "9:51:34 PDT"]
[Termination "BlitzWizard04 won by resignation"]

1. e4 {[%clk 0:03:00.9]} 1... e5 {[%clk 0:02:59.5]} 2. Nf3 {[%clk 0:03:01.6]}
2... Nc6 {[%clk 0:03:00]} 3. c3 {[%clk 0:03:02.2]} 3... d5 {[%clk 0:02:57.1]} 4.
Qa4 {[%clk 0:03:02.2]} 4... f6 {[%clk 0:02:57.3]} 5. Bb5 {[%clk 0:03:00.8]} 5...
Ne7 {[%clk 0:02:56.4]} 6. exd5 {[%clk 0:03:01.5]} 6... Qxd5 {[%clk 0:02:55.8]}
7. d4 {[%clk 0:03:02.3]} 7... Bg4 {[%clk 0:02:49.4]} 8. Nbd2 {[%clk 0:02:57.9]}
8... e4 {[%clk 0:02:46]} 9. c4 {[%clk 0:02:51]} 9... Qf5 {[%clk 0:02:34.4]} 10.
Nh4 {[%clk 0:02:50.8]} 10... Qh5 {[%clk 0:02:34.3]} 11. d5 {[%clk 0:02:48.6]}
11... e3 {[%clk 0:02:22.2]} 12. Ndf3 {[%clk 0:02:40.6]} 12... exf2+ {[%clk
0:02:14.6]} 13. Kf1 {[%clk 0:02:40.7]} 13... g5 {[%clk 0:02:04.1]} 14. dxc6
{[%clk 0:02:38.5]} 14... b6 {[%clk 0:02:04.5]} 15. h3 {[%clk 0:02:29.6]} 15...
Be6 {[%clk 0:02:03.7]} 16. Nd4 {[%clk 0:02:27.2]} 16... Qxh4 {[%clk 0:01:48.1]}
17. Nxe6 {[%clk 0:02:27]} 17... Qe4 {[%clk 0:01:47.9]} 18. Nxc7+ {[%clk
0:02:22.3]} 18... Kd8 {[%clk 0:01:48.2]} 19. Qd1+ {[%clk 0:02:22.5]} 19... Kxc7
{[%clk 0:01:47.1]} 20. Qd7+ {[%clk 0:02:22]} 1-0